{"text_format":"3","workbook":"xlsx","n_sheets":2,"sheets":["Arkusz1","Pomocnicze"],"not_rendered":{"images":1,"defined_names":2},"read":"whole","date_system":"1900"}

{"sheet":"Arkusz1","index":0,"n_rows":127,"n_cols":6,"rows_kept":127,"merged":[[13,1,13,5],[17,0,17,1],[17,4,17,5],[18,0,18,1],[18,4,18,5],[20,0,20,5],[22,0,22,5],[26,0,26,5],[27,0,27,5],[53,0,53,5],[68,0,68,5],[83,0,83,4],[93,1,93,4],[105,4,107,5],[108,4,108,5],[111,0,111,5],[117,1,117,5],[119,1,119,5],[122,1,122,5]]}
{"$rows_empty":13}
["1.","Wypełnianie budżetu należy rozpocząć od wpisania  kwoty wnioskowanej dotacji. Jest to niezbędny warunek poprawnego wyliczenia limitów kosztów."]
["2.","Konieczne jest rozpisanie w kosztach 100% wnioskowanej dotacji."]
[]
[]
["Rodzaj wnioskodawcy (należy wybrać z listy)",{"$nulls":3},"Kwota wnioskowanej dotacji"]
["(wybierz z listy rodzaj wnioskodawcy)",{"$nulls":3},{"v":0,"d":"0.00"}]
[]
[{"$f":"IF(AND(E19<>F84,F84>0),\"Błąd! Kwota wnioskowanej dotacji jest różna od sumy wydatków uwzględnionych w budżecie\",\"\")","v":""}]
[]
[{"$f":"IF(A19=Pomocnicze!A2,\"Wybierz rodzaj wnioskodawcy!\",\"\")","v":"Wybierz rodzaj wnioskodawcy!"}]
[]
["Lp.","Rodzaj kosztów","Ilość jednostek","Koszt jednostkowy","Rodzaj miary","Koszt całkowity"]
[1,2,3,4,5,6]
["Kategoria I – Koszty merytoryczne i koszty promocji "]
["I.1. Koszty osobowe"]
[1,{"$nulls":4},{"$f":"IF(AND(C29<>\"\",D29>1),ROUND(C29*D29,2),\"\")","v":""}]
[2,{"$nulls":4},{"$f":"IF(AND(C30<>\"\",D30>1),ROUND(C30*D30,2),\"\")","v":""}]
[3,{"$nulls":4},""]
[4,{"$nulls":4},""]
[5,{"$nulls":4},""]
[6,{"$nulls":4},""]
[7,{"$nulls":4},""]
[8,{"$nulls":4},""]
[{"$nulls":4},"Suma:  ",{"$f":"SUM(F29:F36)","v":{"v":0,"d":"0.00"}}]
["I.2. Pozostałe koszty merytoryczne"]
[1,{"$nulls":4},{"$f":"IF(AND(C39<>\"\",D39>1),ROUND(C39*D39,2),\"\")","v":""}]
[2,{"$nulls":4},""]
[3,{"$nulls":4},""]
[4,{"$nulls":4},""]
[5,{"$nulls":4},""]
[6,{"$nulls":4},""]
[7,{"$nulls":4},""]
[8,{"$nulls":4},""]
[9,{"$nulls":4},""]
[10,{"$nulls":4},""]
[11,{"$nulls":4},""]
[12,{"$nulls":4},""]
[13,{"$nulls":4},""]
[{"$nulls":4},"Suma:  ",{"$f":"SUM(F39:F51)","v":{"v":0,"d":"0.00"}}]
[{"$nulls":4},"Koszty merytoryczne i koszty promocji razem:  ",{"$f":"SUM(F37,F52)","v":{"v":0,"d":"0.00"}}]
["Kategoria II - Koszty rozwoju"]
[1,{"$nulls":4},{"$f":"IF(AND(C55<>\"\",D55>1),ROUND(C55*D55,2),\"\")","v":""}]
[2,{"$nulls":4},""]
[3,{"$nulls":4},""]
[4,{"$nulls":4},""]
[5,{"$nulls":4},""]
[6,{"$nulls":4},""]
[7,{"$nulls":4},""]
[8,{"$nulls":4},""]
[9,{"$nulls":4},""]
[10,{"$nulls":4},""]
[11,{"$nulls":4},""]
[12,{"$nulls":4},""]
[13,{"$nulls":4},""]
[{"$nulls":4},"Suma:  ",{"$f":"SUM(F55:F67)","v":{"v":0,"d":"0.00"}}]
["Kategoria III - Koszty obsługi zadania publicznego, w tym koszty administracyjne (limit 25% kosztów ogółem)"]
[1,{"$nulls":4},{"$f":"IF(AND(C70<>\"\",D70>1),ROUND(C70*D70,2),\"\")","v":""}]
[2,{"$nulls":4},""]
[3,{"$nulls":4},""]
[4,{"$nulls":4},""]
[5,{"$nulls":4},""]
[6,{"$nulls":4},""]
[7,{"$nulls":4},""]
[8,{"$nulls":4},""]
[9,{"$nulls":4},""]
[10,{"$nulls":4},""]
[11,{"$nulls":4},""]
[12,{"$nulls":4},""]
[13,{"$nulls":4},""]
[{"$nulls":4},"Suma:  ",{"$f":"SUM(F70:F82)","v":{"v":0,"d":"0.00"}}]
["Koszty ogółem:  ",{"$nulls":4},{"$f":"SUM(F53,F68,F83)","v":{"v":0,"d":"0.00"}}]
[]
[]
[]
[null,"Sprawdzenie poprawności budżetu"]
[]
[null,{"$f":"A27","v":"Kategoria I – Koszty merytoryczne i koszty promocji "}]
[null,{"$f":"IFERROR(IF(AND(A19=Pomocnicze!A4,Arkusz1!F37/Arkusz1!F84>0.4),\"Błąd! Koszty osobowe nie mogą przekraczać 40% kosztów ogółem\",\"✔\"),\"\")","v":""}]
[]
[null,{"$f":"A54","v":"Kategoria II - Koszty rozwoju"}]
[null,{"$f":"IFERROR(IF(AND(A19=Pomocnicze!A3,Arkusz1!F68/Arkusz1!F84>0.5),\"Błąd! Koszty w w tej kategorii nie mogą przekraczać 50% kosztów ogółem\",IF(AND(OR(Arkusz1!A19=Pomocnicze!A5,Arkusz1!A19=Pomocnicze!A4),Arkusz1!F68/Arkusz1!F84>0.3),\"Błąd! Koszty w tej kategorii nie mogą przekraczać 30% kosztów ogółem\",\"✔\")),\"\")","v":""}]
[]
[null,{"$f":"A69","v":"Kategoria III - Koszty obsługi zadania publicznego, w tym koszty administracyjne (limit 25% kosztów ogółem)"}]
[null,{"$f":"IFERROR(IF(F83/F84>0.25,\"Błąd! Koszty w tej kategorii nie mogą przekraczać 25% kosztów ogółem\",\"✔\"),\"\")","v":""}]
[]
[]
[]
["Oświadczenie dla organizacji pozarządowych i patronów"]
[]
["W imieniu organizacji oświadczam, że organizacja*:"]
[]
[]
[]
[]
[]
[{"$nulls":4},"Podpis wnioskodawcy**"]
[]
["* Zaznaczyć odpowiednią opcję"]
["** Przez wnioskodawcę w przypadku grup nieformalnych z Patronem należy rozumieć Patrona, natomiast w przypadku grup bez Patrona przez wnioskodawcę należy rozumieć lidera projektu."]
[]
[]
["LIMITY "]
["1. ","Koszty rozwoju: rozwój instytucjonalny MiŚLOP - do 50% dotacji, rozwój członków grupy nieformalnej - do 30% dotacji"]
["2. ","Koszty obsługi zadania publicznego - do 25% dotacji (z wyjątkiem grup bez patrona, które nie ponoszą tego typu kosztów - administracyjnie obsługuje je Operator)"]
["3. ","Koszty merytoryczne oraz koszty promocji:  bez limitu, z wyjątkiem kosztów osobowych dla projektów realizowanych przez grupy nieformalne bez Patrona (do 40% dotacji)."]
[]
[null,"W przypadku umieszczenia kosztu w nieodpowiedniej kategorii (np. zakup napojów umieszczony w kategorii \"Koszty osobowe\"), wydatek zostanie uznany za niekwalifikowalny."]
[]
["Instrukcja do budżetu:"]
["1.","W kolumnie 2 \"Rodzaj kosztów\" należy wpisać materiały, rzeczy, usługi niezbędne do realizacji projektu, np. materiały warsztatowe, usługi transportowe, zakup komputera."]
["2.","W kolumnie 3 \"Ilość jednostek\" należy wpisać liczbę jednostek dotyczących konkretnego kosztu."]
["3.","W kolumnie 4 \"Koszt jednostkowy\" należy umieścić cenę jednego egzemplarza, kompletu, usługi."]
["4.","W kolumnie 5 \"Rodzaj miary\" należy określić sposób zmierzenia konkretnego wydatku, np. sztuka, komplet, miesiąc itp."]
["6.","W kolumnie 6 \"Koszt całkowity\" program automatycznie wyliczy koszt danej rzeczy, materiału czy usługi."]

{"sheet":"Pomocnicze","index":1,"n_rows":5,"n_cols":1,"rows_kept":5,"hidden":true}
["Rodzaj wnioskodawcy"]
["(wybierz z listy rodzaj wnioskodawcy)"]
["MiŚLOP"]
["grupa nieformalna bez patrona"]
["grupa nieformalna z patronem"]